[Event "Groningen Festival 2019-B"]
[Site "Groningen"]
[Date "2019.12.24"]
[Round "4.5"]
[White "Christensen, John Christopher Hoj"]
[Black "Slagter, Ruben"]
[Result "0-1"]
[ECO "B34"]
[WhiteElo "1848"]
[BlackElo "2077"]
[Annotator "NA RC"]
[PlyCount "52"]
[EventDate "2019.12.15"]
[EventType "swiss"]
[EventCountry "NED"]
[SourceTitle "playchess.com"]
[Source "ChessBase"]
[SourceQuality "1"]
[TimeControl "40/5400+30:1800+30"]

{[%evp 15,51,-44,32767,32767,32767,32767,0,-128,-133,-269,-311,32767,32767,32767,32767,32767,-517,-1333,-1418,-1257,32767,32767,-1717,-1841,32767,-2062,-3506,-2689,32767,-29994,32767,-29996,-1866,-29991,-29992,32767,-29993,-29999]} 1. e4 {[%emt 0:00:00]} c5 {[%emt 0:00:00]} 2. Nf3 {[%emt 0:00:00]} g6 {[%emt 0:00:57]} 3. d4 {[%emt 0:00:30]} cxd4 {[%emt 0:00:06]} 4. Nxd4 {[%emt 0:00:08]} Bg7 {[%emt 0:00:45]} 5. Be3 {[%emt 0:00:52]} Nc6 {[%emt 0:00:27]} 6. Nc3 {[%emt 0:00:35]} Nf6 {[%emt 0:00:09]} 7. f3 {[%emt 0:01:32]} O-O {[%emt 0:02:28]} 8. Qd2 {[%emt 0:00:42]} d5 {[%emt 0:05:47]} 9. Nxc6 {[%emt 0:01:28]} bxc6 {[%emt 0:00:08]} 10. O-O-O {[%emt 0:00:12]} Be6 {[%emt 0:16:53]} ({Better is} 10... Qc7 $1 $15) 11. Qf2 {[%emt 0:05:39] B34: Sicilian: Accelerated Dragon with 5 Nc3: sidelines} (11. exd5 $11 Nxd5 12. Nxd5 cxd5 13. Bd4) 11... Qa5 {[%emt 0:01:37]} 12. Bd4 $2 $146 {[%emt 0:13:02]} (12. Rd4 $17 {keeps fighting.}) ({Predecessor:} 12. a3 dxe4 13. fxe4 Ng4 14. Qe1 Bxc3 15. bxc3 Rfd8 16. Rxd8+ Rxd8 {0-1 (16) Beron,K (1534)-Mekhitarian,K (2539) Concordia 2019}) 12... dxe4 {[%emt 0:03:34]} 13. fxe4 {[%emt 0:02:46]} Bxa2 {[%emt 0:02:52]} 14. Be2 {[%emt 0:02:19]} Be6 {[%emt 0:02:55]} 15. Kb1 {[%emt 0:03:27] [#]} c5 $1 {[%emt 0:07:03]} 16. Be5 {[%emt 0:08:11] [#]} Nxe4 $1 {[%emt 0:04:35] Discovered Attack} 17. Nxe4 {[%emt 0:00:33]} Bxe5 {[%emt 0:00:08]} 18. c4 {[%emt 0:08:31] [#]} Rab8 $1 {[%emt 0:13:18]} 19. Rd2 {[%emt 0:02:31]} Bf5 {[%emt 0:00:56]} 20. Bf3 {[%emt 0:01:31]} Rb3 {[%emt 0:01:26]} 21. Rc1 {[%emt 0:04:35]} Rfb8 {[%emt 0:01:49]} 22. Rcc2 {[%emt 0:00:18]} Ra3 {[%emt 0:01:07]} 23. Rc1 {[%emt 0:05:56]} Ra1+ {[%emt 0:00:08]} (23... Qa4 $142 24. Rd8+ Rxd8 25. bxa3 Qb3+ 26. Qb2 Qxb2#) 24. Kc2 {[%emt 0:00:09]} Rxb2+ {[%emt 0:00:08]} 25. Kd1 {[%emt 0:00:18]} Rxc1+ {[%emt 0:00:21]} 26. Kxc1 {[%emt 0:00:13]} Qa1# {[%emt 0:00:21]} 0-1

[Event "Groningen Festival 2019-B"]
[Site "Groningen"]
[Date "2019.12.24"]
[Round "4.6"]
[White "Bosker, Peter"]
[Black "Konnen, Timo"]
[Result "1-0"]
[ECO "A57"]
[WhiteElo "2075"]
[BlackElo "1843"]
[Annotator "NA RC"]
[PlyCount "43"]
[EventDate "2019.12.15"]
[EventType "swiss"]
[EventCountry "NED"]
[SourceTitle "playchess.com"]
[Source "ChessBase"]
[SourceQuality "1"]
[TimeControl "40/5400+30:1800+30"]

1. d4 Nf6 2. Nf3 c5 3. d5 b5 4. c4 Bb7 5. b3 bxc4 6. bxc4 Ne4 (6... Ba6 $14) 7. Qc2 Qa5+ 8. Nbd2 f5 9. Bb2 e6 10. Qb3 Nxd2 11. Nxd2 Qb6 12. g3 Na6 13. Bg2 $16 Rb8 14. O-O Nc7 15. dxe6 Nxe6 16. Qxb6 axb6 17. Bh3 Rg8 18. Bxf5 g6 19. Be4 Ba6 20. Bd5 Be7 21. Rfb1 Rf8 22. Bxe6 1-0

[Event "Groningen Festival 2019-B"]
[Site "Groningen"]
[Date "2019.12.26"]
[Round "5.1"]
[White "Akotchik, Victor"]
[Black "De Vries, Leon"]
[Result "1-0"]
[ECO "B87"]
[WhiteElo "2095"]
[BlackElo "1934"]
[Annotator "NA"]
[PlyCount "85"]
[EventDate "2019.12.15"]
[EventType "swiss"]
[EventCountry "NED"]
[SourceTitle "playchess.com"]
[Source "ChessBase"]
[SourceQuality "1"]
[TimeControl "40/5400+30:1800+30"]

1. e4 {[%emt 0:00:00]} c5 {[%emt 0:00:00]} 2. Nf3 {[%emt 0:00:00]} d6 {[%emt 0:00:00]} 3. Nc3 {[%emt 0:00:00]} a6 {[%emt 0:00:39]} 4. d4 {[%emt 0:06:15]} cxd4 {[%emt 0:00:36]} 5. Nxd4 {[%emt 0:00:03]} Nf6 {[%emt 0:00:17]} 6. Bc4 {[%emt 0:04:49]} e6 {[%emt 0:01:15]} 7. Qe2 {[%emt 0:07:40]} b5 {[%emt 0:07:58]} 8. Bb3 {[%emt 0:05:18]} Be7 {[%emt 0:00:40]} 9. g4 {[%emt 0:20:02]} b4 {[%emt 0:15:31]} 10. Na4 {[%emt 0:02:17]} Bb7 {[%emt 0:03:05]} 11. f3 {[%emt 0:01:27]} Nc6 {[%emt 0:07:45]} 12. Be3 {[%emt 0:00:20]} Qa5 {[%emt 0:10:14]} 13. Nxc6 {[%emt 0:11:47]} Bxc6 {[%emt 0:00:11]} 14. Nb6 {[%emt 0:03:36]} Rb8 {[%emt 0:05:47]} 15. g5 {[%emt 0:03:14]} Nd7 {[%emt 0:06:12]} 16. Nxd7 {[%emt 0:07:29]} Kxd7 {[%emt 0:02:36]} 17. Qd2 {[%emt 0:02:40]} Qe5 {[%emt 0:04:12]} 18. O-O-O {[%emt 0:01:06]} a5 {[%emt 0:00:31]} 19. Bf4 {[%emt 0:02:05]} Qc5 {[%emt 0:01:01]} 20. Be3 {[%emt 0:05:30]} Qb5 {[%emt 0:04:58]} 21. Qd4 {[%emt 0:00:57]} e5 {[%emt 0:06:05]} 22. Qd2 {[%emt 0:04:05]} Rhf8 {[%emt 0:01:28]} 23. Qg2 {[%emt 0:01:12]} a4 {[%emt 0:01:09]} 24. Bd5 {[%emt 0:00:18]} Bxd5 {[%emt 0:07:54]} 25. Rxd5 {[%emt 0:00:09]} Qc4 {[%emt 0:00:58]} 26. Kb1 {[%emt 0:00:19]} Rfc8 {[%emt 0:00:52]} 27. h4 {[%emt 0:04:13]} b3 {[%emt 0:01:24]} 28. cxb3 {[%emt 0:02:23]} axb3 {[%emt 0:03:26]} 29. a3 {[%emt 0:03:56]} Qc2+ {[%emt 0:03:08]} 30. Qxc2 {[%emt 0:00:04]} Rxc2 {[%emt 0:00:07]} 31. Bd2 {[%emt 0:01:06]} Kc6 {[%emt 0:01:22]} 32. Rd3 {[%emt 0:00:06]} Rc4 {[%emt 0:03:04]} 33. Bb4 {[%emt 0:00:29]} Kd7 {[%emt 0:00:42]} 34. Rhd1 {[%emt 0:00:36]} Rd4 {[%emt 0:01:10]} 35. Rxd4 {[%emt 0:00:12]} exd4 {[%emt 0:00:04]} 36. Rxd4 {[%emt 0:00:14]} Ke6 {[%emt 0:00:12]} 37. Rd3 {[%emt 0:00:56]} h6 {[%emt 0:00:40]} 38. f4 {[%emt 0:00:14]} hxg5 {[%emt 0:00:14]} 39. hxg5 {[%emt 0:00:02]} g6 {[%emt 0:00:36]} 40. Rxb3 {[%emt 0:00:21]} d5 {[%emt 0:00:17]} 41. exd5+ {[%emt 0:32:19]} Kxd5 {[%emt 0:30:07]} 42. Rd3+ {[%emt 0:00:00]} Ke4 {[%emt 0:00:00]} 43. Rc3 {[%emt 0:00:00]} 1-0

[Event "Groningen Festival 2019-B"]
[Site "Groningen"]
[Date "2019.12.26"]
[Round "5.2"]
[White "Novotny, David"]
[Black "Bosker, Peter"]
[Result "1-0"]
[ECO "B08"]
[WhiteElo "1810"]
[BlackElo "2075"]
[Annotator "NA"]
[PlyCount "75"]
[EventDate "2019.12.15"]
[EventType "swiss"]
[EventCountry "NED"]
[SourceTitle "playchess.com"]
[Source "ChessBase"]
[SourceQuality "1"]
[TimeControl "40/5400+30:1800+30"]

1. d4 {[%emt 0:00:00]} Nf6 {[%emt 0:00:00]} 2. Nc3 {[%emt 0:00:00]} g6 {[%emt 0:01:56]} 3. e4 {[%emt 0:00:55]} d6 {[%emt 0:00:08]} 4. Bf4 {[%emt 0:03:33]} Bg7 {[%emt 0:01:11]} 5. Qd2 {[%emt 0:00:39]} O-O {[%emt 0:06:05]} 6. Nf3 {[%emt 0:04:09]} Bg4 {[%emt 0:03:56]} 7. O-O-O {[%emt 0:03:56]} Nc6 {[%emt 0:07:56]} 8. Qe3 {[%emt 0:03:51]} Bxf3 {[%emt 0:16:14]} 9. gxf3 {[%emt 0:01:14]} Qc8 {[%emt 0:04:15]} 10. Bh6 {[%emt 0:05:20]} e5 {[%emt 0:01:57]} 11. Bxg7 {[%emt 0:08:01]} Kxg7 {[%emt 0:00:17]} 12. d5 {[%emt 0:00:47]} Ne7 {[%emt 0:00:41]} 13. h4 {[%emt 0:10:52]} Nh5 {[%emt 0:03:58]} 14. Bh3 {[%emt 0:03:48]} Qe8 {[%emt 0:00:17]} 15. Ne2 {[%emt 0:02:53]} f5 {[%emt 0:02:49]} 16. f4 {[%emt 0:12:47]} exf4 {[%emt 0:04:01]} 17. Qc3+ {[%emt 0:00:48]} Kh6 {[%emt 0:04:07]} 18. Nd4 {[%emt 0:03:37]} c5 {[%emt 0:08:40]} 19. Ne6 {[%emt 0:01:50]} Qa4 {[%emt 0:05:49]} 20. Nxf8 {[%emt 0:06:06]} Rxf8 {[%emt 0:00:09]} 21. e5 {[%emt 0:00:37]} Qe4 {[%emt 0:09:36]} 22. Rhe1 {[%emt 0:04:44]} Nxd5 {[%emt 0:04:53]} 23. Qb3 {[%emt 0:01:57]} Ne3 {[%emt 0:06:32]} 24. fxe3 {[%emt 0:05:29]} f3 {[%emt 0:01:26]} 25. exd6 {[%emt 0:03:49]} Qxh4 {[%emt 0:01:14]} 26. Bf1 {[%emt 0:01:34]} Ng3 {[%emt 0:01:18]} 27. Qxb7 {[%emt 0:03:44]} f2 {[%emt 0:00:48]} 28. Re2 {[%emt 0:01:37]} Qa4 {[%emt 0:02:32]} 29. Rxf2 {[%emt 0:01:17]} Qxa2 {[%emt 0:00:20]} 30. Rh2+ {[%emt 0:02:29]} Kg5 {[%emt 0:00:19]} 31. Qe7+ {[%emt 0:01:08]} Rf6 {[%emt 0:00:01]} 32. Rg2 {[%emt 0:00:27]} Qa1+ {[%emt 0:01:46]} 33. Kd2 {[%emt 0:00:02]} Qxb2 {[%emt 0:00:04]} 34. Rxg3+ {[%emt 0:00:17]} Kh4 {[%emt 0:00:00]} 35. Rh3+ {[%emt 0:01:01]} Kg4 {[%emt 0:00:01]} 36. Be2+ {[%emt 0:01:07]} Kxh3 {[%emt 0:00:05]} 37. Qxh7+ {[%emt 0:00:09]} Kg2 {[%emt 0:00:52]} 38. Qh1+ {[%emt 0:00:08]} 1-0

[Event "Groningen Festival 2019-B"]
[Site "Groningen"]
[Date "2019.12.26"]
[Round "5.3"]
[White "Slagter, Ruben"]
[Black "Zuiderweg, Edwin"]
[Result "1/2-1/2"]
[ECO "B20"]
[WhiteElo "2077"]
[BlackElo "1951"]
[Annotator "NA"]
[PlyCount "47"]
[EventDate "2019.12.15"]
[EventType "swiss"]
[EventCountry "NED"]
[SourceTitle "playchess.com"]
[Source "ChessBase"]
[SourceQuality "1"]
[TimeControl "40/5400+30:1800+30"]

1. e4 {[%emt 0:02:42]} c5 {[%emt 0:00:00]} 2. b3 {[%emt 0:00:31]} e6 {[%emt 0:07:08]} 3. Bb2 {[%emt 0:01:29]} d5 {[%emt 0:00:16]} 4. Bb5+ {[%emt 0:02:28]} Bd7 {[%emt 0:00:18]} 5. Bxd7+ {[%emt 0:05:29]} Qxd7 {[%emt 0:00:13]} 6. exd5 {[%emt 0:07:48]} exd5 {[%emt 0:02:23]} 7. Nf3 {[%emt 0:11:22]} Qe6+ {[%emt 0:14:30]} 8. Kf1 {[%emt 0:05:43]} Nf6 {[%emt 0:02:02]} 9. d4 {[%emt 0:01:43]} Nc6 {[%emt 0:07:23]} 10. Nc3 {[%emt 0:05:51]} O-O-O {[%emt 0:11:00]} 11. dxc5 {[%emt 0:07:23]} Bxc5 {[%emt 0:00:26]} 12. Na4 {[%emt 0:00:25]} Be7 {[%emt 0:10:08]} 13. Nd4 {[%emt 0:05:40]} Nxd4 {[%emt 0:01:30]} 14. Bxd4 {[%emt 0:02:23]} Kb8 {[%emt 0:17:22]} 15. Qd3 {[%emt 0:08:42]} Qe4 {[%emt 0:05:29]} 16. Qd2 {[%emt 0:01:19]} Qf5 {[%emt 0:01:38]} 17. Qa5 {[%emt 0:03:38]} b6 {[%emt 0:03:28]} 18. Qa6 {[%emt 0:12:48]} Ne4 {[%emt 0:06:51]} 19. Bxb6 {[%emt 0:06:56]} axb6 {[%emt 0:00:23]} 20. Qxb6+ {[%emt 0:00:05]} Kc8 {[%emt 0:02:27]} 21. Qc6+ {[%emt 0:01:23]} Kb8 {[%emt 0:00:10]} 22. Qb6+ {[%emt 0:00:09]} Kc8 {[%emt 0:00:04]} 23. Qc6+ {[%emt 0:00:25]} Kb8 {[%emt 0:00:10]} 24. Qb6+ {[%emt 0:00:05]} 1/2-1/2

[Event "Groningen Festival 2019-B"]
[Site "Groningen"]
[Date "2019.12.26"]
[Round "5.4"]
[White "Labruyere, Roger"]
[Black "Noordenbos, Daan"]
[Result "1-0"]
[ECO "A49"]
[WhiteElo "1933"]
[BlackElo "2023"]
[Annotator "NA"]
[PlyCount "98"]
[EventDate "2019.12.15"]
[EventType "swiss"]
[EventCountry "NED"]
[SourceTitle "playchess.com"]
[Source "ChessBase"]
[SourceQuality "1"]
[TimeControl "40/5400+30:1800+30"]

1. d4 {[%emt 0:00:00]} Nf6 {[%emt 0:00:00]} 2. Nf3 {[%emt 0:00:00]} g6 {[%emt 0:00:00]} 3. g3 {[%emt 0:00:00]} Bg7 {[%emt 0:00:00]} 4. Bg2 {[%emt 0:00:00]} O-O {[%emt 0:00:01]} 5. O-O {[%emt 0:00:00]} d6 {[%emt 0:00:55]} 6. b3 {[%emt 0:00:00]} Nbd7 {[%emt 0:00:45]} 7. Bb2 {[%emt 0:00:25]} Ne4 {[%emt 0:01:48]} 8. Nbd2 {[%emt 0:04:41]} Nxd2 {[%emt 0:01:13]} 9. Nxd2 {[%emt 0:01:38]} c5 {[%emt 0:00:58]} 10. Nc4 {[%emt 0:00:37]} Rb8 {[%emt 0:03:54]} 11. a4 {[%emt 0:01:46]} b6 {[%emt 0:05:09]} 12. d5 {[%emt 0:02:05]} Qc7 {[%emt 0:09:33]} 13. Bxg7 {[%emt 0:01:24]} Kxg7 {[%emt 0:01:55]} 14. e4 {[%emt 0:03:45]} Ba6 {[%emt 0:03:19]} 15. Na3 {[%emt 0:03:01]} Bxf1 {[%emt 0:04:44]} 16. Bxf1 {[%emt 0:00:16]} a5 {[%emt 0:08:42]} 17. Nb5 {[%emt 0:02:36]} Qb7 {[%emt 0:00:17]} 18. c4 {[%emt 0:04:34]} h5 {[%emt 0:18:11]} 19. f4 {[%emt 0:03:53]} f6 {[%emt 0:05:48]} 20. Bh3 {[%emt 0:05:02]} Rh8 {[%emt 0:02:35]} 21. Qe2 {[%emt 0:01:41]} Rbd8 {[%emt 0:09:28]} 22. Re1 {[%emt 0:00:25]} g5 {[%emt 0:01:12]} 23. Bf5 {[%emt 0:14:56]} Kh6 {[%emt 0:02:32]} 24. Qe3 {[%emt 0:04:23]} Rhg8 {[%emt 0:02:12]} 25. Be6 {[%emt 0:02:14]} Rg7 {[%emt 0:00:54]} 26. e5 {[%emt 0:00:15]} dxe5 {[%emt 0:02:05]} 27. fxg5+ {[%emt 0:01:42]} fxg5 {[%emt 0:00:18]} 28. Bxd7 {[%emt 0:00:22]} Qxd7 {[%emt 0:00:11]} 29. Qxe5 {[%emt 0:00:10]} Rf8 {[%emt 0:01:59]} 30. Nc7 {[%emt 0:11:44]} Rf5 {[%emt 0:03:14]} 31. Qe4 {[%emt 0:00:05]} Rgf7 {[%emt 0:00:58]} 32. Ne6 {[%emt 0:00:38]} Qd6 {[%emt 0:00:49]} 33. Qe3 {[%emt 0:02:02]} Kg6 {[%emt 0:02:15]} 34. Qd3 {[%emt 0:01:26]} R7f6 {[%emt 0:02:24]} 35. Qe4 {[%emt 0:06:03]} Kf7 {[%emt 0:01:27]} 36. g4 {[%emt 0:03:44]} Rf2 {[%emt 0:03:06]} 37. Qh7+ {[%emt 0:00:14]} Ke8 {[%emt 0:00:35]} 38. Qxh5+ {[%emt 0:00:05]} Kd7 {[%emt 0:00:24]} 39. Qh8 {[%emt 0:00:36]} Rxe6 {[%emt 0:01:52]} 40. dxe6+ {[%emt 0:00:24]} Kc7 {[%emt 0:00:09]} 41. Kxf2 {[%emt 0:34:07]} Qd2+ {[%emt 0:30:13]} 42. Kf1 {[%emt 0:00:11]} Qf4+ {[%emt 0:00:25]} 43. Ke2 {[%emt 0:00:40]} Qe4+ {[%emt 0:00:25]} 44. Kd2 {[%emt 0:00:23]} Qf4+ {[%emt 0:00:06]} 45. Re3 {[%emt 0:01:14]} Qf2+ {[%emt 0:00:08]} 46. Re2 {[%emt 0:00:16]} Qf4+ {[%emt 0:00:11]} 47. Kc2 {[%emt 0:00:25]} Qf1 {[%emt 0:00:14]} 48. Qe5+ {[%emt 0:00:17]} Kc8 {[%emt 0:00:00]} 49. Rd2 {[%emt 0:00:38]} Qf3 {[%emt 0:00:01]} 1-0

[Event "Groningen Festival 2019-B"]
[Site "Groningen"]
[Date "2019.12.26"]
[Round "5.5"]
[White "Salihbegovic, Edim"]
[Black "Bloem, Mark"]
[Result "0-1"]
[ECO "B40"]
[WhiteElo "2011"]
[BlackElo "1928"]
[Annotator "NA"]
[PlyCount "60"]
[EventDate "2019.12.15"]
[EventType "swiss"]
[EventCountry "NED"]
[SourceTitle "playchess.com"]
[Source "ChessBase"]
[SourceQuality "1"]
[TimeControl "40/5400+30:1800+30"]

1. e4 {[%emt 0:00:00]} c5 {[%emt 0:00:00]} 2. Nf3 {[%emt 0:00:00]} e6 {[%emt 0:00:00]} 3. b3 {[%emt 0:00:00]} Nc6 {[%emt 0:03:02]} 4. Bb2 {[%emt 0:01:53]} d5 {[%emt 0:05:12]} 5. Bb5 {[%emt 0:01:01]} a6 {[%emt 0:13:28]} 6. exd5 {[%emt 0:06:41]} axb5 {[%emt 0:02:57]} 7. dxc6 {[%emt 0:00:52]} bxc6 {[%emt 0:00:02]} 8. Ne5 {[%emt 0:01:33]} Nf6 {[%emt 0:01:32]} 9. O-O {[%emt 0:04:24]} Bd6 {[%emt 0:17:10]} 10. f4 {[%emt 0:01:19]} Qc7 {[%emt 0:01:30]} 11. d3 {[%emt 0:05:18]} O-O {[%emt 0:00:58]} 12. Rf3 {[%emt 0:10:57]} Nh5 {[%emt 0:10:43]} 13. g3 {[%emt 0:13:34]} f6 {[%emt 0:18:00]} 14. Re3 {[%emt 0:01:55]} g6 {[%emt 0:04:32]} 15. Nd2 {[%emt 0:13:29]} fxe5 {[%emt 0:02:22]} 16. fxe5 {[%emt 0:00:13]} Qg7 {[%emt 0:01:18]} 17. c4 {[%emt 0:02:57]} Ra7 {[%emt 0:03:20]} 18. g4 {[%emt 0:04:33]} Nf4 {[%emt 0:01:37]} 19. g5 {[%emt 0:00:43]} Rf5 {[%emt 0:04:41]} 20. Ne4 {[%emt 0:03:09]} Be7 {[%emt 0:00:18]} 21. h4 {[%emt 0:01:52]} h6 {[%emt 0:02:40]} 22. Qg4 {[%emt 0:06:10]} Rd7 {[%emt 0:01:00]} 23. Rd1 {[%emt 0:05:42]} hxg5 {[%emt 0:01:12]} 24. hxg5 {[%emt 0:00:13]} Qh7 {[%emt 0:01:19]} 25. Rd2 {[%emt 0:07:57]} Qh5 {[%emt 0:00:37]} 26. Qg3 {[%emt 0:00:22]} Bxg5 {[%emt 0:00:56]} 27. Rf3 {[%emt 0:03:31]} Rh7 {[%emt 0:01:09]} 28. Rg2 {[%emt 0:02:59]} Qh1+ {[%emt 0:00:48]} 29. Kf2 {[%emt 0:00:07]} Bh4 {[%emt 0:00:10]} 30. Ke3 {[%emt 0:01:04]} Nxg2+ {[%emt 0:00:28] Kd4} 0-1

[Event "Groningen Festival 2019-B"]
[Site "Groningen"]
[Date "2019.12.26"]
[Round "5.6"]
[White "Waardenburg, Feline"]
[Black "Neuendorf, Max"]
[Result "1/2-1/2"]
[ECO "D18"]
[WhiteElo "1769"]
[BlackElo "1994"]
[Annotator "NA"]
[PlyCount "40"]
[EventDate "2019.12.15"]
[EventType "swiss"]
[EventCountry "NED"]
[SourceTitle "playchess.com"]
[Source "ChessBase"]
[SourceQuality "1"]
[TimeControl "40/5400+30:1800+30"]

1. d4 {[%emt 0:00:00]} d5 {[%emt 0:00:36]} 2. c4 {[%emt 0:00:05]} c6 {[%emt 0:00:09]} 3. Nf3 {[%emt 0:00:21]} Nf6 {[%emt 0:00:13]} 4. Nc3 {[%emt 0:00:24]} dxc4 {[%emt 0:00:25]} 5. a4 {[%emt 0:00:57]} Bf5 {[%emt 0:00:21]} 6. e3 {[%emt 0:00:32]} e6 {[%emt 0:00:24]} 7. Bxc4 {[%emt 0:00:30]} Bb4 {[%emt 0:00:14]} 8. O-O {[%emt 0:00:21]} O-O {[%emt 0:00:16]} 9. Nh4 {[%emt 0:01:28]} Bg4 {[%emt 0:02:29]} 10. f3 {[%emt 0:02:43]} Bh5 {[%emt 0:00:28]} 11. g4 {[%emt 0:00:37]} Bg6 {[%emt 0:10:21]} 12. Nxg6 {[%emt 0:01:21]} hxg6 {[%emt 0:00:14]} 13. e4 {[%emt 0:02:51]} Nbd7 {[%emt 0:23:22]} 14. Kh1 {[%emt 0:07:42]} e5 {[%emt 0:03:45]} 15. Bb3 {[%emt 0:17:53]} exd4 {[%emt 0:08:23]} 16. Qxd4 {[%emt 0:01:41]} Qb6 {[%emt 0:02:44]} 17. Qd1 {[%emt 0:13:50]} Rad8 {[%emt 0:12:02]} 18. Qc2 {[%emt 0:02:19]} Nc5 {[%emt 0:08:53]} 19. Bc4 {[%emt 0:03:53]} Nfd7 {[%emt 0:07:54]} 20. Be3 {[%emt 0:03:48]} Qa5 {[%emt 0:06:18]} 1/2-1/2

[Event "Groningen Festival 2019-B"]
[Site "Groningen"]
[Date "2019.12.27"]
[Round "6.2"]
[White "Muller, Kenneth"]
[Black "Labruyere, Roger"]
[Result "1-0"]
[ECO "D00"]
[WhiteElo "1806"]
[BlackElo "1933"]
[Annotator "NA"]
[PlyCount "103"]
[EventDate "2019.12.15"]
[EventType "swiss"]
[EventCountry "NED"]
[SourceTitle "playchess.com"]
[Source "ChessBase"]
[SourceQuality "1"]
[TimeControl "40/5400+30:1800+30"]

1. d4 {[%emt 0:00:00]} Nf6 {[%emt 0:00:00]} 2. Nc3 {[%emt 0:00:00]} d5 {[%emt 0:01:12]} 3. Bf4 {[%emt 0:01:09]} e6 {[%emt 0:01:47]} 4. e3 {[%emt 0:00:45]} a6 {[%emt 0:02:33]} 5. g4 {[%emt 0:03:22]} Bb4 {[%emt 0:01:20]} 6. Nge2 {[%emt 0:00:45]} Ne4 {[%emt 0:15:44]} 7. h4 {[%emt 0:05:25]} c5 {[%emt 0:01:30]} 8. a3 {[%emt 0:02:19]} Bxc3+ {[%emt 0:00:14]} 9. Nxc3 {[%emt 0:00:07]} Qa5 {[%emt 0:01:15]} 10. dxc5 {[%emt 0:01:04]} Nxc3 {[%emt 0:00:44]} 11. Qd2 {[%emt 0:00:22]} Qxc5 {[%emt 0:00:12]} 12. Qxc3 {[%emt 0:02:45]} Qxc3+ {[%emt 0:02:20]} 13. bxc3 {[%emt 0:06:37]} Nc6 {[%emt 0:00:10]} 14. Bg3 {[%emt 0:08:20]} O-O {[%emt 0:02:12]} 15. Bg2 {[%emt 0:06:15]} Bd7 {[%emt 0:05:09]} 16. Rd1 {[%emt 0:04:06]} Rfe8 {[%emt 0:02:27]} 17. c4 {[%emt 0:03:27]} d4 {[%emt 0:03:46]} 18. exd4 {[%emt 0:02:28]} e5 {[%emt 0:00:53]} 19. dxe5 {[%emt 0:11:10]} Nxe5 {[%emt 0:00:31]} 20. O-O {[%emt 0:03:45]} Bxg4 {[%emt 0:00:31]} 21. Bxb7 {[%emt 0:08:41]} Bxd1 {[%emt 0:02:56]} 22. Bxa8 {[%emt 0:00:53]} Bxc2 {[%emt 0:02:58]} 23. Bxe5 {[%emt 0:05:36]} Rxe5 {[%emt 0:00:44]} 24. Rc1 {[%emt 0:00:24]} Bf5 {[%emt 0:02:12]} 25. Bb7 {[%emt 0:01:31]} Rc5 {[%emt 0:04:14]} 26. Bxa6 {[%emt 0:01:30]} Be6 {[%emt 0:01:20]} 27. a4 {[%emt 0:03:47]} Kf8 {[%emt 0:00:14]} 28. Bb5 {[%emt 0:00:35]} Ke7 {[%emt 0:00:07]} 29. Rd1 {[%emt 0:00:23]} h5 {[%emt 0:03:29]} 30. a5 {[%emt 0:02:10]} Bxc4 {[%emt 0:01:21]} 31. Bxc4 {[%emt 0:00:37]} Rxc4 {[%emt 0:00:10]} 32. Ra1 {[%emt 0:00:12]} Rc7 {[%emt 0:00:05]} 33. Kg2 {[%emt 0:00:23]} Ra7 {[%emt 0:00:21]} 34. a6 {[%emt 0:00:17]} Ke6 {[%emt 0:06:05]} 35. Kg3 {[%emt 0:01:25]} g6 {[%emt 0:00:40]} 36. Kf4 {[%emt 0:00:10]} Kd5 {[%emt 0:00:38]} 37. Kg5 {[%emt 0:00:36]} Ke5 {[%emt 0:03:18]} 38. f4+ {[%emt 0:01:15]} Ke6 {[%emt 0:00:52]} 39. Ra5 {[%emt 0:00:28]} Ra8 {[%emt 0:04:31]} 40. a7 {[%emt 0:02:34]} Ke7 {[%emt 0:03:13]} 41. Ra6 {[%emt 0:32:18]} Kf8 {[%emt 0:33:13]} 42. f5 {[%emt 0:02:51]} gxf5 {[%emt 0:01:02]} 43. Kxh5 {[%emt 0:00:15]} Kg7 {[%emt 0:01:02]} 44. Kg5 {[%emt 0:00:07]} Kh7 {[%emt 0:06:40]} 45. Kxf5 {[%emt 0:00:36]} Kg7 {[%emt 0:03:26]} 46. h5 {[%emt 0:01:53]} f6 {[%emt 0:00:39]} 47. Ra5 {[%emt 0:00:15]} Kf7 {[%emt 0:00:40]} 48. h6 {[%emt 0:00:10]} Kg8 {[%emt 0:00:35]} 49. Kxf6 {[%emt 0:00:30]} Kh7 {[%emt 0:00:08]} 50. Ra1 {[%emt 0:00:23]} Rf8+ {[%emt 0:00:33]} 51. Ke7 {[%emt 0:00:08]} Ra8 {[%emt 0:00:13]} 52. Kd7 {[%emt 0:00:27]} 1-0